[Event "SWVG Arnold Classic Prestige All 2019"]
[Site "Sandton"]
[Date "2019.05.18"]
[Round "6.6"]
[White "Bhawoodien, Shabir Hussain"]
[Black "Masiya, Mfundo"]
[Result "1-0"]
[ECO "A36"]
[WhiteElo "2020"]
[BlackElo "1977"]
[Annotator "NA"]
[PlyCount "147"]
[EventDate "2019.05.18"]
[EventType "swiss"]
[EventCountry "RSA"]
[SourceTitle "playchess.com"]
[Source "ChessBase"]
[SourceQuality "1"]
[TimeControl "1500+10"]

1. e4 {[%emt 0:00:00]} c5 {[%emt 0:00:00]} 2. c4 {[%emt 0:00:01]} g6 {[%emt 0:00:12]} 3. Nc3 {[%emt 0:00:02]} Bg7 {[%emt 0:00:02]} 4. g3 {[%emt 0:00:01]} Nc6 {[%emt 0:00:01]} 5. Bg2 {[%emt 0:00:02]} d6 {[%emt 0:00:02]} 6. Nge2 {[%emt 0:00:02]} Nf6 {[%emt 0:00:02]} 7. d3 {[%emt 0:00:06]} O-O {[%emt 0:00:03]} 8. O-O {[%emt 0:00:03]} a6 {[%emt 0:00:16]} 9. Be3 {[%emt 0:00:47]} Rb8 {[%emt 0:00:02]} 10. a4 {[%emt 0:00:22]} Ne8 {[%emt 0:00:06]} 11. f4 {[%emt 0:00:48]} Nc7 {[%emt 0:00:24]} 12. f5 {[%emt 0:00:25]} e6 {[%emt 0:01:53]} 13. g4 {[%emt 0:08:11]} b5 {[%emt 0:00:59]} 14. axb5 {[%emt 0:02:20]} axb5 {[%emt 0:00:02]} 15. cxb5 {[%emt 0:02:40]} Rxb5 {[%emt 0:00:25]} 16. Nxb5 {[%emt 0:00:12]} Nxb5 {[%emt 0:00:05]} 17. Qd2 {[%emt 0:04:53]} Nbd4 {[%emt 0:01:22]} 18. Nxd4 {[%emt 0:00:39]} Nxd4 {[%emt 0:00:04]} 19. Bxd4 {[%emt 0:00:07]} Bxd4+ {[%emt 0:00:02]} 20. Kh1 {[%emt 0:00:01]} Qh4 {[%emt 0:00:46]} 21. Qe2 {[%emt 0:00:31]} Re8 {[%emt 0:01:30]} 22. Ra8 {[%emt 0:00:49]} exf5 {[%emt 0:01:37]} 23. gxf5 {[%emt 0:00:19]} Be5 {[%emt 0:00:38]} 24. Bf3 {[%emt 0:01:30]} Kf8 {[%emt 0:00:53]} 25. Qf2 {[%emt 0:01:14]} Qf6 {[%emt 0:00:02]} 26. b3 {[%emt 0:00:17]} gxf5 {[%emt 0:00:26]} 27. Bg4 {[%emt 0:00:44]} Qh6 {[%emt 0:02:45]} 28. Bxf5 {[%emt 0:00:10]} Bxf5 {[%emt 0:00:08]} 29. Rxe8+ {[%emt 0:00:01]} Kxe8 {[%emt 0:00:01]} 30. exf5 {[%emt 0:00:02]} Ke7 {[%emt 0:00:02]} 31. f6+ {[%emt 0:00:34]} Bxf6 {[%emt 0:00:47]} 32. Qf3 {[%emt 0:00:19]} Qh4 {[%emt 0:03:30]} 33. Qb7+ {[%emt 0:00:07]} Ke6 {[%emt 0:00:21]} 34. Qc8+ {[%emt 0:00:18]} Ke7 {[%emt 0:00:58]} 35. Qb7+ {[%emt 0:00:20]} Ke6 {[%emt 0:00:15]} 36. Qf3 {[%emt 0:00:16]} Ke7 {[%emt 0:00:24]} 37. Qe4+ {[%emt 0:00:05]} Qxe4+ {[%emt 0:00:03]} 38. dxe4 {[%emt 0:00:01]} Ke6 {[%emt 0:00:01]} 39. Kg2 {[%emt 0:00:01]} Bg5 {[%emt 0:00:46]} 40. Rf5 {[%emt 0:00:10]} f6 {[%emt 0:00:01]} 41. Kf3 {[%emt 0:00:05]} h5 {[%emt 0:00:07]} 42. Kg3 {[%emt 0:00:45]} h4+ {[%emt 0:00:06]} 43. Kg4 {[%emt 0:00:04]} Ke7 {[%emt 0:00:24]} 44. Rd5 {[%emt 0:00:08]} Ke6 {[%emt 0:00:26]} 45. h3 {[%emt 0:00:02]} Ke7 {[%emt 0:00:05]} 46. Kf5 {[%emt 0:00:03]} Be3 {[%emt 0:00:22]} 47. Rd1 {[%emt 0:00:07]} Bd4 {[%emt 0:00:14]} 48. Rd2 {[%emt 0:00:37]} Kd7 {[%emt 0:00:04]} 49. Ra2 {[%emt 0:00:53]} Be5 {[%emt 0:00:14]} 50. Ra6 {[%emt 0:00:10]} Kc7 {[%emt 0:00:01]} 51. Ke6 {[%emt 0:00:01]} Kb7 {[%emt 0:00:17]} 52. Rxd6 {[%emt 0:00:05]} Bxd6 {[%emt 0:00:15]} 53. Kxd6 {[%emt 0:00:01]} Kb6 {[%emt 0:00:01]} 54. Ke6 {[%emt 0:00:01]} Kb5 {[%emt 0:00:01]} 55. Kxf6 {[%emt 0:01:38]} Kb4 56. e5 {[%emt 0:00:00]} Kxb3 {[%emt 0:00:01]} 57. e6 {[%emt 0:00:00]} c4 {[%emt 0:00:00]} 58. e7 {[%emt 0:00:00]} c3 {[%emt 0:00:01]} 59. e8=Q {[%emt 0:00:00]} c2 {[%emt 0:00:00]} 60. Qb5+ {[%emt 0:00:00]} Ka2 {[%emt 0:00:18]} 61. Qc4+ {[%emt 0:00:00]} Kb2 {[%emt 0:00:04]} 62. Qb4+ {[%emt 0:00:00]} Ka2 {[%emt 0:00:07]} 63. Qc3 {[%emt 0:00:00]} Kb1 {[%emt 0:00:01]} 64. Kg5 {[%emt 0:01:30]} c1=Q+ {[%emt 0:00:04]} 65. Qxc1+ {[%emt 0:00:00]} Kxc1 {[%emt 0:00:01]} 66. Kxh4 {[%emt 0:00:00]} Kd2 {[%emt 0:00:01]} 67. Kg5 {[%emt 0:00:00]} Kd3 {[%emt 0:00:02]} 68. h4 {[%emt 0:00:00]} Kd4 {[%emt 0:00:01]} 69. h5 {[%emt 0:00:00]} Kd5 {[%emt 0:00:00]} 70. Kg6 {[%emt 0:00:00]} Ke6 {[%emt 0:00:01]} 71. Kg7 {[%emt 0:00:00]} Kf5 {[%emt 0:00:01]} 72. h6 {[%emt 0:00:00]} Kg5 {[%emt 0:00:01]} 73. h7 {[%emt 0:00:00]} Kf5 {[%emt 0:00:00]} 74. h8=Q {[%emt 0:01:40]} 1-0

[Event "SWVG Arnold Classic Prestige All 2019"]
[Site "Sandton"]
[Date "2019.05.18"]
[Round "6.7"]
[White "Simpson, Michael M"]
[Black "Erlank, Warrick"]
[Result "0-1"]
[ECO "A08"]
[WhiteElo "1995"]
[BlackElo "1967"]
[Annotator "NA"]
[PlyCount "78"]
[EventDate "2019.05.18"]
[EventType "swiss"]
[EventCountry "RSA"]
[SourceTitle "playchess.com"]
[Source "ChessBase"]
[SourceQuality "1"]
[TimeControl "1500+10"]

1. e4 {[%emt 0:00:00]} e6 {[%emt 0:00:38]} 2. d3 {[%emt 0:00:00]} d5 {[%emt 0:00:03]} 3. Nd2 {[%emt 0:00:00]} Nf6 {[%emt 0:00:03]} 4. Ngf3 {[%emt 0:00:03]} c5 {[%emt 0:00:04]} 5. c3 {[%emt 0:00:05]} Nc6 {[%emt 0:00:04]} 6. g3 {[%emt 0:00:06]} g6 {[%emt 0:00:06]} 7. Bg2 {[%emt 0:00:03]} Bg7 {[%emt 0:00:02]} 8. O-O {[%emt 0:00:10]} O-O {[%emt 0:00:05]} 9. a3 {[%emt 0:00:02]} a5 {[%emt 0:00:29]} 10. Re1 {[%emt 0:00:14]} Re8 {[%emt 0:01:11]} 11. e5 {[%emt 0:00:22]} Nd7 {[%emt 0:00:15]} 12. d4 {[%emt 0:00:04]} cxd4 {[%emt 0:01:16]} 13. cxd4 {[%emt 0:00:03]} f6 {[%emt 0:00:31]} 14. exf6 {[%emt 0:00:38]} Bxf6 {[%emt 0:00:19]} 15. Nb3 {[%emt 0:01:45]} a4 {[%emt 0:00:47]} 16. Nc5 {[%emt 0:00:32]} Nxd4 {[%emt 0:02:59]} 17. Nxd7 {[%emt 0:01:54]} Nxf3+ {[%emt 0:00:11]} 18. Bxf3 {[%emt 0:00:11]} Bxd7 {[%emt 0:00:17]} 19. Bh6 {[%emt 0:00:11]} Bg7 {[%emt 0:00:50]} 20. Bxg7 {[%emt 0:00:05]} Kxg7 {[%emt 0:00:03]} 21. Qd4+ {[%emt 0:00:01]} Qf6 {[%emt 0:00:12]} 22. Qe3 {[%emt 0:01:12]} Rac8 {[%emt 0:01:49]} 23. Rac1 {[%emt 0:00:39]} Rc6 {[%emt 0:00:19]} 24. Be2 {[%emt 0:00:53]} e5 {[%emt 0:00:54]} 25. Qa7 {[%emt 0:00:12]} Rec8 {[%emt 0:02:09]} 26. Rcd1 {[%emt 0:00:51]} d4 {[%emt 0:03:37]} 27. Qxb7 {[%emt 0:00:22]} R8c7 {[%emt 0:10:17]} 28. Qb4 {[%emt 0:00:34]} Rc2 {[%emt 0:00:09]} 29. Rd2 {[%emt 0:00:31]} Rxd2 {[%emt 0:00:47]} 30. Qxd2 {[%emt 0:18:17]} e4 {[%emt 0:01:47]} 31. Bf1 {[%emt 0:01:04]} Bc6 {[%emt 0:01:38]} 32. Bg2 {[%emt 0:00:11]} Re7 {[%emt 0:00:13]} 33. Qc2 {[%emt 0:03:42]} d3 {[%emt 0:00:13]} 34. Qd2 {[%emt 0:00:09]} Qd4 {[%emt 0:00:05]} 35. Qc3 {[%emt 0:00:58]} Qxc3 {[%emt 0:01:29]} 36. bxc3 {[%emt 0:00:02]} Bd5 {[%emt 0:00:12]} 37. Rc1 {[%emt 0:04:32]} Bb3 {[%emt 0:00:13]} 38. Bf3 {[%emt 0:01:43]} exf3 {[%emt 0:00:07]} 39. c4 {[%emt 0:00:07]} d2 {[%emt 0:00:02]} 0-1

[Event "SWVG Arnold Classic Prestige All 2019"]
[Site "Sandton"]
[Date "2019.05.18"]
[Round "6.8"]
[White "Goosen, Anton"]
[Black "Mwale, Joseph"]
[Result "0-1"]
[ECO "C48"]
[WhiteElo "1947"]
[BlackElo "2274"]
[Annotator "NA"]
[PlyCount "134"]
[EventDate "2019.05.18"]
[EventType "swiss"]
[EventCountry "RSA"]
[SourceTitle "playchess.com"]
[Source "ChessBase"]
[SourceQuality "1"]
[TimeControl "1500+10"]

1. e4 {[%emt 0:00:00]} e5 {[%emt 0:00:00]} 2. Nf3 {[%emt 0:00:00]} Nf6 {[%emt 0:00:16]} 3. Nc3 {[%emt 0:00:00]} Nc6 {[%emt 0:00:02]} 4. Bb5 {[%emt 0:00:00]} Nd4 {[%emt 0:00:04]} 5. Nxd4 {[%emt 0:00:00]} exd4 {[%emt 0:00:01]} 6. e5 {[%emt 0:00:03]} dxc3 {[%emt 0:00:08]} 7. exf6 {[%emt 0:00:02]} Qxf6 {[%emt 0:00:12]} 8. dxc3 {[%emt 0:00:04]} c6 {[%emt 0:00:32]} 9. Bd3 {[%emt 0:00:37]} d5 {[%emt 0:00:06]} 10. O-O {[%emt 0:00:18]} Bd6 {[%emt 0:00:17]} 11. Re1+ {[%emt 0:01:08]} Be6 {[%emt 0:00:07]} 12. Qh5 {[%emt 0:00:22]} g6 {[%emt 0:06:16]} 13. Qh6 {[%emt 0:03:23]} Bf8 {[%emt 0:00:32]} 14. Qf4 {[%emt 0:01:05]} Qxf4 {[%emt 0:00:17]} 15. Bxf4 {[%emt 0:00:02]} Bg7 {[%emt 0:00:09]} 16. Be5 {[%emt 0:00:23]} Bxe5 {[%emt 0:00:20]} 17. Rxe5 {[%emt 0:00:02]} Kd7 {[%emt 0:00:06]} 18. Rae1 {[%emt 0:00:20]} Rhe8 {[%emt 0:00:39]} 19. f4 {[%emt 0:00:27]} b5 {[%emt 0:01:11]} 20. h3 {[%emt 0:02:06]} f5 {[%emt 0:00:56]} 21. g4 {[%emt 0:03:57]} fxg4 {[%emt 0:01:34]} 22. hxg4 {[%emt 0:00:01]} Bxg4 {[%emt 0:01:09]} 23. Rxd5+ {[%emt 0:00:02]} Kc7 {[%emt 0:01:32]} 24. Rde5 {[%emt 0:00:14]} Rxe5 {[%emt 0:00:27]} 25. Rxe5 {[%emt 0:00:02]} Kd6 {[%emt 0:00:27]} 26. Kf2 {[%emt 0:00:34]} Rf8 {[%emt 0:00:17]} 27. Kg3 {[%emt 0:00:31]} Bf5 {[%emt 0:00:46]} 28. Re2 {[%emt 0:02:37]} h5 {[%emt 0:01:21]} 29. Bxf5 {[%emt 0:00:55]} Rxf5 {[%emt 0:00:18]} 30. b3 {[%emt 0:03:31]} a5 {[%emt 0:00:37]} 31. a3 {[%emt 0:00:41]} Kd5 {[%emt 0:01:25]} 32. Rd2+ {[%emt 0:02:11]} Kc5 {[%emt 0:02:37]} 33. Rd4 {[%emt 0:01:11]} Rd5 {[%emt 0:02:45]} 34. b4+ {[%emt 0:00:16]} axb4 {[%emt 0:00:01]} 35. axb4+ {[%emt 0:00:01]} Kd6 {[%emt 0:00:01]} 36. Rd3 {[%emt 0:00:28]} Ke6 {[%emt 0:00:01]} 37. Re3+ {[%emt 0:01:04]} Kf7 {[%emt 0:00:40]} 38. c4 {[%emt 0:01:05]} bxc4 {[%emt 0:00:06]} 39. Re4 {[%emt 0:00:02]} c5 {[%emt 0:01:27]} 40. Rxc4 {[%emt 0:00:56]} cxb4 {[%emt 0:00:01]} 41. Rxb4 {[%emt 0:00:02]} Rc5 {[%emt 0:00:01]} 42. c4 {[%emt 0:00:08]} Kf6 {[%emt 0:00:03]} 43. Kf3 {[%emt 0:00:07]} Rc8 {[%emt 0:00:18]} 44. Rb6+ {[%emt 0:00:14]} Kg7 {[%emt 0:00:07]} 45. Rb4 {[%emt 0:00:08]} Rc5 {[%emt 0:00:24]} 46. Ra4 {[%emt 0:00:32]} Kh6 {[%emt 0:00:40]} 47. Kg3 {[%emt 0:00:08]} Kg7 {[%emt 0:00:03]} 48. Rb4 {[%emt 0:00:00]} Kf6 {[%emt 0:00:31]} 49. Rb6+ {[%emt 0:00:08]} Kg7 {[%emt 0:00:04]} 50. Rb4 {[%emt 0:00:01]} Rc8 {[%emt 0:00:09]} 51. Kf3 {[%emt 0:00:10]} Kf6 {[%emt 0:00:09]} 52. Rb6+ {[%emt 0:00:07]} Kg7 {[%emt 0:00:10]} 53. Rb4 {[%emt 0:00:13]} Kf7 {[%emt 0:00:16]} 54. Rb7+ {[%emt 0:00:02]} Kf6 {[%emt 0:00:05]} 55. Rb6+ {[%emt 0:00:01]} Kg7 {[%emt 0:00:02]} 56. Rb7+ {[%emt 0:00:00]} Kh6 {[%emt 0:00:02]} 57. Rb4 {[%emt 0:00:03]} Rc5 {[%emt 0:00:04]} 58. Kg3 {[%emt 0:00:04]} Rc6 {[%emt 0:00:13]} 59. Ra4 {[%emt 0:00:06]} Kg7 {[%emt 0:00:02]} 60. Rb4 {[%emt 0:02:05]} Kf6 {[%emt 0:00:03]} 61. Kf3 {[%emt 0:00:07]} Ke6 {[%emt 0:00:14]} 62. Kg3 {[%emt 0:00:17]} Ra6 {[%emt 0:01:16]} 63. Kh4 {[%emt 0:00:14]} Ra1 {[%emt 0:00:15]} 64. Rb5 {[%emt 0:00:53]} Rc1 {[%emt 0:00:21]} 65. Re5+ {[%emt 0:00:46]} Kf6 {[%emt 0:00:05]} 66. Rc5 {[%emt 0:00:04]} Rg1 {[%emt 0:00:06]} 67. f5 {[%emt 0:00:51]} Rg4+ {[%emt 0:00:44]} 0-1

[Event "SWVG Arnold Classic Prestige All 2019"]
[Site "Sandton"]
[Date "2019.05.18"]
[Round "6.9"]
[White "Simutowe, Musatwe"]
[Black "Fourie, Brandon"]
[Result "1-0"]
[ECO "E02"]
[WhiteElo "2170"]
[BlackElo "1566"]
[Annotator "NA"]
[PlyCount "93"]
[EventDate "2019.05.18"]
[EventType "swiss"]
[EventCountry "RSA"]
[SourceTitle "playchess.com"]
[Source "ChessBase"]
[SourceQuality "1"]
[TimeControl "1500+10"]

1. Nf3 {[%emt 0:00:00]} Nf6 {[%emt 0:00:02]} 2. c4 {[%emt 0:00:00]} e6 {[%emt 0:00:05]} 3. g3 {[%emt 0:00:08]} Be7 {[%emt 0:00:08]} 4. Bg2 {[%emt 0:00:03]} d5 {[%emt 0:00:09]} 5. O-O {[%emt 0:00:04]} O-O {[%emt 0:00:03]} 6. Qc2 {[%emt 0:00:07]} dxc4 {[%emt 0:00:54]} 7. Qxc4 {[%emt 0:00:07]} Nbd7 {[%emt 0:00:56]} 8. d4 {[%emt 0:00:03]} a6 {[%emt 0:00:04]} 9. Nc3 {[%emt 0:00:08]} b5 {[%emt 0:00:01]} 10. Qd3 {[%emt 0:00:10]} Bb7 {[%emt 0:00:01]} 11. Rd1 {[%emt 0:00:20]} c5 {[%emt 0:00:15]} 12. Bg5 {[%emt 0:00:15]} h6 {[%emt 0:00:46]} 13. Bf4 {[%emt 0:00:12]} c4 {[%emt 0:00:33]} 14. Qc2 {[%emt 0:00:08]} Qa5 {[%emt 0:00:55]} 15. Ne1 {[%emt 0:01:34]} Bxg2 {[%emt 0:00:31]} 16. Nxg2 {[%emt 0:00:02]} Rac8 {[%emt 0:01:21]} 17. e4 {[%emt 0:00:03]} b4 {[%emt 0:01:11]} 18. Ne2 {[%emt 0:00:13]} c3 {[%emt 0:02:05]} 19. bxc3 {[%emt 0:00:21]} bxc3 {[%emt 0:00:05]} 20. Ne1 {[%emt 0:00:07]} Rc4 {[%emt 0:00:46]} 21. Rab1 {[%emt 0:00:54]} Nb6 {[%emt 0:05:11]} 22. Rb3 {[%emt 0:03:06]} Rfc8 {[%emt 0:00:35]} 23. Rdb1 {[%emt 0:00:01]} Nfd7 {[%emt 0:00:50]} 24. Be3 {[%emt 0:00:12]} Na4 {[%emt 0:01:47]} 25. Nd3 {[%emt 0:00:37]} Bf8 {[%emt 0:04:24]} 26. Rb7 {[%emt 0:00:47]} R8c7 {[%emt 0:00:46]} 27. Bf4 {[%emt 0:00:33]} Rxb7 {[%emt 0:00:23]} 28. Rxb7 {[%emt 0:00:03]} Nab6 {[%emt 0:01:24]} 29. Kg2 {[%emt 0:00:29]} Qb5 {[%emt 0:00:53]} 30. f3 {[%emt 0:00:31]} g5 {[%emt 0:00:40]} 31. Be3 {[%emt 0:00:27]} Qc6 {[%emt 0:00:13]} 32. Ra7 {[%emt 0:00:02]} Nc8 {[%emt 0:00:43]} 33. Rxd7 {[%emt 0:00:03]} Qxd7 {[%emt 0:00:07]} 34. Ne5 {[%emt 0:00:02]} Qa4 {[%emt 0:00:16]} 35. Qd3 {[%emt 0:00:30]} Rc7 {[%emt 0:00:16]} 36. Nxc3 {[%emt 0:02:09]} Qa3 {[%emt 0:00:27]} 37. Bd2 {[%emt 0:00:09]} Nb6 {[%emt 0:00:27]} 38. Ng4 {[%emt 0:01:24]} Bg7 {[%emt 0:00:27]} 39. Nf2 {[%emt 0:00:18]} Rc4 {[%emt 0:00:13]} 40. e5 {[%emt 0:00:08]} Rc7 {[%emt 0:00:47]} 41. Qb1 {[%emt 0:00:35]} Nc8 {[%emt 0:00:26]} 42. Nce4 {[%emt 0:00:05]} Qe7 {[%emt 0:00:05]} 43. Qb8 {[%emt 0:00:19]} Kh7 {[%emt 0:00:05]} 44. Ba5 {[%emt 0:00:16]} Rc2 {[%emt 0:00:10]} 45. Qb1 {[%emt 0:00:08]} Rc6 {[%emt 0:00:08]} 46. Nf6+ {[%emt 0:00:03]} Kh8 {[%emt 0:00:28]} 47. Qh7# {[%emt 0:00:08]} 1-0

[Event "SWVG Arnold Classic Prestige All 2019"]
[Site "Sandton"]
[Date "2019.05.18"]
[Round "6.10"]
[White "Bucceri, Draven"]
[Black "Klevansky, Aron"]
[Result "1/2-1/2"]
[ECO "A48"]
[WhiteElo "1633"]
[BlackElo "1878"]
[Annotator "NA"]
[PlyCount "42"]
[EventDate "2019.05.18"]
[EventType "swiss"]
[EventCountry "RSA"]
[SourceTitle "playchess.com"]
[Source "ChessBase"]
[SourceQuality "1"]
[TimeControl "1500+10"]

1. d4 {[%emt 0:25:10]} Nf6 {[%emt 0:25:10]} 2. Bf4 {[%emt 0:00:10]} g6 {[%emt 0:00:10]} 3. e3 {[%emt 0:00:10]} Bg7 {[%emt 0:00:10]} 4. c3 {[%emt 0:00:10]} d6 {[%emt 0:00:10]} 5. Be2 {[%emt 0:00:10]} O-O {[%emt 0:00:10]} 6. h3 {[%emt 0:00:10]} c5 {[%emt 0:00:10]} 7. Nf3 {[%emt 0:00:10]} b6 {[%emt 0:00:10]} 8. O-O {[%emt 0:00:10]} Bb7 {[%emt 0:00:10]} 9. Nbd2 {[%emt 0:00:10]} Nc6 {[%emt 0:00:10]} 10. a4 {[%emt 0:00:10]} cxd4 {[%emt 0:00:10]} 11. exd4 {[%emt 0:00:10]} Nd7 {[%emt 0:00:10]} 12. Nc4 {[%emt 0:00:10]} Na5 {[%emt 0:00:10]} 13. b4 {[%emt 0:00:10]} Nxc4 {[%emt 0:00:10]} 14. Bxc4 {[%emt 0:00:10]} Rc8 {[%emt 0:00:10]} 15. Qb3 {[%emt 0:00:10]} e5 {[%emt 0:00:10]} 16. Bg5 {[%emt 0:00:10]} Qc7 {[%emt 0:00:10]} 17. Bb5 {[%emt 0:00:10]} a6 {[%emt 0:00:10]} 18. Bxd7 {[%emt 0:00:10]} Qxd7 {[%emt 0:00:10]} 19. dxe5 {[%emt 0:00:10]} dxe5 {[%emt 0:00:10]} 20. Nd2 {[%emt 0:00:10]} Qc6 {[%emt 0:00:10]} 21. f3 {[%emt 0:00:10]} Qxc3 {[%emt 0:00:10]} 1/2-1/2

[Event "SWVG Arnold Classic Prestige All 2019"]
[Site "Sandton"]
[Date "2019.05.18"]
[Round "6.11"]
[White "Sithole, Collins"]
[Black "Van Der Walt, Pierre E."]
[Result "1/2-1/2"]
[ECO "D85"]
[WhiteElo "1861"]
[BlackElo "1993"]
[Annotator "NA"]
[PlyCount "177"]
[EventDate "2019.05.18"]
[EventType "swiss"]
[EventCountry "RSA"]
[SourceTitle "playchess.com"]
[Source "ChessBase"]
[SourceQuality "1"]
[TimeControl "1500+10"]

1. Nf3 {[%emt 0:00:00]} Nf6 {[%emt 0:00:00]} 2. c4 {[%emt 0:00:00]} g6 {[%emt 0:00:03]} 3. Nc3 {[%emt 0:00:00]} Bg7 {[%emt 0:00:01]} 4. d4 {[%emt 0:00:10]} d5 {[%emt 0:00:06]} 5. cxd5 {[%emt 0:01:13]} Nxd5 {[%emt 0:00:02]} 6. e4 {[%emt 0:00:04]} Nxc3 {[%emt 0:00:01]} 7. bxc3 {[%emt 0:00:02]} c5 {[%emt 0:00:13]} 8. Be3 {[%emt 0:00:38]} Qa5 {[%emt 0:01:15]} 9. Qb3 {[%emt 0:01:15]} O-O {[%emt 0:01:39]} 10. Bc4 {[%emt 0:00:10]} Nc6 {[%emt 0:00:44]} 11. O-O {[%emt 0:00:18]} Bg4 {[%emt 0:02:21]} 12. Ng5 {[%emt 0:01:01]} cxd4 {[%emt 0:01:20]} 13. Bxf7+ {[%emt 0:02:07]} Kh8 {[%emt 0:00:32]} 14. cxd4 {[%emt 0:00:28]} h6 {[%emt 0:01:28]} 15. Nf3 {[%emt 0:01:07]} Bxf3 {[%emt 0:00:52]} 16. gxf3 {[%emt 0:00:03]} Nxd4 {[%emt 0:00:21]} 17. Bxd4 {[%emt 0:01:38]} Bxd4 {[%emt 0:00:24]} 18. Rad1 {[%emt 0:00:15]} Qg5+ {[%emt 0:02:32]} 19. Kh1 {[%emt 0:00:01]} Be5 {[%emt 0:00:14]} 20. Rd5 {[%emt 0:03:50]} Qf4 {[%emt 0:01:35]} 21. Rxe5 {[%emt 0:00:02]} Qxe5 {[%emt 0:00:22]} 22. Rg1 {[%emt 0:00:13]} Qf6 {[%emt 0:02:39]} 23. Bxg6 {[%emt 0:03:40]} Qxf3+ {[%emt 0:00:03]} 24. Rg2 {[%emt 0:02:56]} Qxb3 {[%emt 0:00:04]} 25. axb3 {[%emt 0:07:59]} Rac8 {[%emt 0:00:30]} 26. h3 {[%emt 0:00:00]} Rc1+ {[%emt 0:00:09]} 27. Kh2 {[%emt 0:00:00]} Rb1 {[%emt 0:00:29]} 28. Bf5 {[%emt 0:00:00]} Rxb3 {[%emt 0:00:33]} 29. Rg6 {[%emt 0:00:00]} Rf6 {[%emt 0:00:24]} 30. Rg2 {[%emt 0:00:00]} a5 {[%emt 0:00:19]} 31. Bd7 {[%emt 0:00:00]} b5 {[%emt 0:00:55]} 32. e5 {[%emt 0:00:00]} Rf4 {[%emt 0:02:19]} 33. Be6 {[%emt 0:00:00]} Rbf3 {[%emt 0:00:13]} 34. Rg8+ {[%emt 0:00:00]} Kh7 {[%emt 0:00:02]} 35. Re8 {[%emt 0:00:00]} Rxf2+ {[%emt 0:00:28]} 36. Kg3 {[%emt 0:00:00]} R2f3+ {[%emt 0:00:34]} 37. Kg2 {[%emt 0:00:00]} b4 {[%emt 0:00:41]} 38. Rxe7+ {[%emt 0:00:00]} Kg6 {[%emt 0:00:06]} 39. Bg4 {[%emt 0:00:00]} Rf2+ {[%emt 0:00:22]} 40. Kg3 {[%emt 0:00:00]} Rf7 {[%emt 0:00:51]} 41. Re6+ {[%emt 0:00:00]} Kg7 {[%emt 0:00:01]} 42. Ra6 {[%emt 0:02:50]} Ra2 {[%emt 0:00:15]} 43. Bh5 {[%emt 0:00:00]} Re7 {[%emt 0:04:08]} 44. Kf4 {[%emt 0:00:00]} Rf2+ {[%emt 0:00:00]} 45. Ke4 {[%emt 0:00:00]} Ra2 {[%emt 0:00:00]} 46. Rg6+ {[%emt 0:00:00]} Kh7 {[%emt 0:00:00]} 47. Rb6 {[%emt 0:00:00]} Rb2 {[%emt 0:00:00]} 48. Ra6 {[%emt 0:00:00]} Rb3 {[%emt 0:00:00]} 49. Bg4 {[%emt 0:00:00]} Ra3 {[%emt 0:00:00]} 50. Bf5+ {[%emt 0:00:00]} Kg7 {[%emt 0:00:00]} 51. Rg6+ {[%emt 0:00:00]} Kf7 {[%emt 0:00:00]} 52. Rxh6 {[%emt 0:00:00]} Rg3 {[%emt 0:00:00]} 53. Ra6 {[%emt 0:00:00]} Rg1 {[%emt 0:00:26]} 54. Rxa5 {[%emt 0:00:00]} Re1+ {[%emt 0:00:03]} 55. Kf4 {[%emt 0:00:00]} b3 {[%emt 0:01:31]} 56. Rb5 {[%emt 0:00:00]} Rf1+ {[%emt 0:00:19]} 57. Kg5 {[%emt 0:00:00]} Re1 {[%emt 0:00:09]} 58. e6+ {[%emt 0:00:00]} Kg7 {[%emt 0:00:03]} 59. Rxb3 {[%emt 0:00:00]} Re5 {[%emt 0:00:16]} 60. Kf4 {[%emt 0:00:00]} Rc5 {[%emt 0:00:13]} 61. Rg3+ {[%emt 0:00:00]} Kf8 {[%emt 0:00:10]} 62. Rg6 {[%emt 0:00:00]} Rg7 {[%emt 0:00:12]} 63. Rh6 {[%emt 0:00:00]} Ke7 {[%emt 0:00:06]} 64. h4 {[%emt 0:00:00]} Rc4+ {[%emt 0:00:11]} 65. Ke5 {[%emt 0:00:00]} Rc5+ {[%emt 0:00:03]} 66. Ke4 {[%emt 0:04:00]} Rc4+ {[%emt 0:00:11]} 67. Kd5 {[%emt 0:00:00]} Rf4 {[%emt 0:00:09]} 68. Ke5 {[%emt 0:00:00]} Ra4 {[%emt 0:00:06]} 69. h5 {[%emt 0:00:00]} Ra5+ {[%emt 0:00:03]} 70. Kf4 {[%emt 0:00:00]} Ra4+ {[%emt 0:00:07]} 71. Be4 {[%emt 0:00:00]} Rg1 {[%emt 0:00:28]} 72. Kf3 {[%emt 0:05:00]} Rf1+ {[%emt 0:00:17]} 73. Ke2 {[%emt 0:00:00]} Rf6 {[%emt 0:00:26]} 74. Bg6 {[%emt 0:00:00]} Rxe6+ {[%emt 0:00:05]} 75. Kd3 {[%emt 0:00:00]} Ra5 {[%emt 0:00:33]} 76. Rh7+ {[%emt 0:00:00]} Kf6 {[%emt 0:00:10]} 77. Rf7+ {[%emt 0:00:00]} Kg5 {[%emt 0:00:41]} 78. Rf1 {[%emt 0:00:00]} Rd5+ {[%emt 0:00:12]} 79. Kc4 {[%emt 0:00:00]} Rd8 {[%emt 0:00:07]} 80. Rf5+ {[%emt 0:00:00]} Kh6 {[%emt 0:00:03]} 81. Rc5 {[%emt 0:00:00]} Red6 {[%emt 0:00:10]} 82. Bf7 {[%emt 0:00:00]} Rd4+ {[%emt 0:00:08]} 83. Kb5 {[%emt 0:00:00]} Rb8+ {[%emt 0:00:05]} 84. Ka5 {[%emt 0:00:00]} Ra8+ {[%emt 0:00:16]} 85. Kb5 {[%emt 0:02:10]} Rb8+ {[%emt 0:00:03]} 86. Ka5 {[%emt 0:00:00]} Rd1 {[%emt 0:01:04]} 87. Rc6+ {[%emt 0:00:20]} Kg7 {[%emt 0:00:10]} 88. Bc4 {[%emt 0:00:10]} Ra1+ {[%emt 0:00:10] Bf7 [%clk 0:00:00] Kh7+ [%clk 0:00:00]} 89. Ba2 {[%emt 0:00:10] Kh6 [%clk 0:00:00]} 1/2-1/2